fUSD/lending_fUSD_20240412
["ID","MTS","AMOUNT","RATE_DAILY","PERIOD"]
[322224622,1712892650057,-500.0,0.00027945,2]
[322224623,1712892650067,-500.0,0.00027945,2]
[322224624,1712892650077,-500.0,0.00027945,2]
[322224625,1712892650088,-3008.33,0.00027945,2]
[322224626,1712892650098,-500.0,0.00027945,2]
[322224627,1712892650108,-774.44,0.00027945,2]
[322224628,1712892650117,-845.07,0.00027945,2]
[322224629,1712892650127,-878.57,0.00027945,2]
[322224630,1712892650137,-500.0,0.00027945,2]
[322224631,1712892650147,-2411.92,0.00027945,2]
[322224632,1712892650157,-1028.23,0.00027945,2]
[322224633,1712892650167,-756.02,0.00027945,2]
[322224634,1712892650177,-500.0,0.00027945,2]
[322224635,1712892650187,-688.0,0.00027945,2]
[322224636,1712892650196,-500.0,0.00027945,2]
[322224637,1712892650206,-500.0,0.00027945,2]
[322224638,1712892650217,-500.0,0.00027945,2]
[322224639,1712892650227,-194.6755822,0.00027945,2]
[322224640,1712892650236,-1675.04,0.00027945,2]
[322224641,1712892650246,-1317.46,0.00027945,2]
[322224642,1712892650256,-500.0,0.00027945,2]
[322224643,1712892650265,-500.0,0.00027945,2]
[322224644,1712892650275,-1226.67791925,0.00027945,2]
[322224645,1712892650965,-1199.98503394,0.00027945,2]
[322224646,1712892650977,-2721.82704681,0.00027945,2]
[322224647,1712892650987,-500.0,0.00027945,2]
[322224648,1712892650996,-500.0,0.00027945,2]
[322224649,1712892651006,-500.0,0.00027945,2]
[322224650,1712892651015,-500.0,0.00027945,2]
[322224651,1712892651026,-546.23,0.00027945,2]
[322224652,1712892651035,-367.51817815,0.00027945,2]
[322224653,1712892651080,-183.47114011,0.00027945,2]
[322224654,1712892651090,-484.14078706,0.00027945,2]
[322224655,1712892651099,-1732.02633361,0.00027945,2]
[322224656,1712892651115,-1508.72366639,0.00027945,2]
[322224657,1712892651124,-380.81874104,0.00027945,2]
[322224658,1712892651134,-246.71023768,0.00027945,2]
[322224659,1712892651361,-333.31630458,0.00027396,2]
[322224660,1712892651371,-435.26,0.00027397,10]
[322224661,1712892651381,-253.28976232,0.00027945,2]
[322224662,1712892651390,-1646.38,0.00027945,2]
[322224663,1712892651399,-217.9542331,0.00027945,2]
[322224664,1712892651489,-282.0457669,0.00027945,2]
[322224665,1712892651499,-6042.17088871,0.00027945,2]
[322224666,1712892651511,-883.97219487,0.00027945,2]
[322224667,1712892651523,-321.22691642,0.00027945,2]
[322224668,1712892651533,-8.46540883,0.00027945,2]
[322224669,1712892651545,-507.12459117,0.00027945,2]
[322224670,1712892651554,-500.0,0.00027945,2]
[322224671,1712892651564,-500.0,0.00027945,2]
[322224672,1712892651573,-380.15171324,0.00027945,2]
[322224673,1712892651921,328.86835553,0.0002,2]
[322224674,1712892652158,6385.37292998,0.0002,2]
[322224675,1712892657271,165.34813137,0.0002,2]
[322224688,1712893310700,2600.0,0.00034102,120]
[322224690,1712893381505,-155.0,0.00024622,2]
[322224691,1712893381530,-467.22,0.00024623,2]
[322224692,1712893381552,-359.952,0.00024965,2]
[322224693,1712893381577,-191.82,0.00026498,2]
[322224694,1712893381601,-1000.0,0.00026515,2]
[322224695,1712893381625,-274.47,0.00026523,2]
[322224696,1712893381649,-250.0,0.00026563,2]
[322224697,1712893381673,-1250.4,0.00026571,2]
[322224698,1712893381696,-250.0,0.00026579,2]
[322224699,1712893381719,-467.22,0.00026887,2]
[322224700,1712893381742,-155.60556781,0.00027227,2]
[322224701,1712893381764,-1464.33660471,0.00027297,2]
[322224702,1712893381786,-160.6,0.00027387,2]
[322224703,1712893381809,-155.95087612,0.00027395,2]
[322224704,1712893381831,-207.24715162,0.00027395,2]
[322224705,1712893381854,-873.17779974,0.00027395,3]
[322224719,1712893832258,-350.0,0.00021,3]
[322224720,1712893832267,-400.0,0.00023,3]
[322224721,1712893832277,-420.49,0.00024614,2]
[322224722,1712893832286,-156.384,0.00024965,2]
[322224723,1712893832295,-450.0,0.00025,3]
[322224724,1712893832304,-250.0,0.00026606,2]
[322224725,1712893832314,-191.82,0.00026627,2]
[322224726,1712893832323,-68.74955534,0.00026666,2]
[322224727,1712893832334,-181.25044466,0.00026666,2]
[322224728,1712893832343,-478.21955534,0.00026666,2]
[322224729,1712893832359,-355.04044466,0.00026666,2]
[322224730,1712893832368,-420.49,0.00026878,2]
[322224731,1712893832378,-500.0,0.00027,3]
[322224732,1712893832387,-153.51916251,0.00027281,2]
[322224733,1712893832397,-1269.5726,0.00027297,2]
[322224734,1712893832406,-1000.0,0.00027297,2]
[322224735,1712893832415,-504.3965,0.00027297,2]
[322224736,1712893832424,-161.32773543,0.00027297,2]
[322224737,1712893832433,-1317.90294423,0.00027297,2]
[322224738,1712893832442,-156.64160943,0.00027301,2]
[322224739,1712893832451,-150.0,0.0002737,2]
[322224740,1712893832461,-158.81,0.00027387,2]
[322224741,1712893832470,-155.0,0.00027395,2]
[322224742,1712893832479,-155.0,0.00027395,2]
[322224743,1712893832489,-1939.45278628,0.00027395,3]
[322224744,1712893832499,-155.63130217,0.00027396,2]
[322224745,1712893832508,-3551.66737668,0.00027396,2]
[322224746,1712893832517,-500.0,0.00027397,2]
[322224747,1712893832527,-639.78117032,0.00027397,2]
[322224748,1712893832536,-187.37595708,0.00027397,2]
[322224750,1712893832545,-500.0,0.00027397,2]
[322224752,1712893832554,-160.88144309,0.00027397,2]
[322224754,1712893832567,-274.52522837,0.00027397,2]
[322224756,1712893832576,-34.7851121,0.00027397,2]
[322224757,1712893832587,-465.2148879,0.00027397,2]
[322224759,1712893832597,-500.0,0.00027397,2]
[322224761,1712893832606,-500.0,0.00027397,2]
[322224762,1712893832615,-500.0,0.00027397,2]
[322224764,1712893832625,-516.13336587,0.00027397,2]
[322224767,1712893832634,-500.0,0.00027397,2]
[322224769,1712893832644,-500.0,0.00027397,2]
[322224771,1712893832652,-500.0,0.00027397,2]
[322224772,1712893832662,-329.2185181,0.00027397,2]
[322224773,1712893832671,-500.0,0.00027397,2]
[322224774,1712893832679,-1579.92,0.00027397,2]
[322224775,1712893832688,-500.0,0.00027397,2]
[322224776,1712893832697,-220.04512045,0.00027397,2]
[322224777,1712893832707,-500.0,0.00027397,2]
[322224778,1712893832719,-554.47,0.00027397,2]
[322224779,1712893832729,-649.97417794,0.00027397,2]
[322224780,1712893832738,-500.0,0.00027397,2]
[322224781,1712893832746,-500.0,0.00027397,2]
[322224782,1712893832756,-500.0,0.00027397,2]
[322224783,1712893832765,-500.0,0.00027397,2]
[322224785,1712893832774,-500.0,0.00027397,2]
[322224787,1712893832784,-500.0,0.00027397,2]
[322224789,1712893832794,-500.0,0.00027397,2]
[322224791,1712893832804,-61.87333996,0.00027397,2]
[322224794,1712893832817,-438.12666004,0.00027397,2]
[322224796,1712893832826,-489.30132559,0.00027397,2]
[322224798,1712893832835,-500.0,0.00027397,2]
[322224800,1712893832845,-1527.53,0.00027397,2]
[322224802,1712893832854,-500.0,0.00027397,2]
[322224804,1712893832863,-500.0,0.00027397,2]
[322224806,1712893832872,-527.27,0.00027397,2]
[322224808,1712893832881,-500.0,0.00027397,2]
[322224810,1712893832890,-215.80789291,0.00027397,2]
[322224812,1712893832899,-500.0,0.00027397,2]
[322224814,1712893832908,-405.22857611,0.00027397,2]
[322224817,1712893832925,-94.77142389,0.00027397,2]
[322224819,1712893832935,-500.0,0.00027397,2]
[322224821,1712893832944,-532.73233095,0.00027397,2]
[322224823,1712893832953,-500.0,0.00027397,2]
[322224825,1712893832962,-500.0,0.00027397,2]
[322224827,1712893832971,-500.0,0.00027397,2]
[322224829,1712893832981,-500.0,0.00027397,2]
[322224831,1712893832990,-500.0,0.00027397,2]
[322224833,1712893832999,-500.0,0.00027397,2]
[322224835,1712893833008,-500.0,0.00027397,2]
[322224837,1712893833018,-174.62438568,0.00027397,2]
[322224839,1712893833027,-500.0,0.00027397,2]
[322224841,1712893833036,-500.0,0.00027397,2]
[322224843,1712893833045,-500.0,0.00027397,2]
[322224845,1712893833054,-500.0,0.00027397,2]
[322224847,1712893833063,-500.0,0.00027397,2]
[322224849,1712893833073,-500.0,0.00027397,2]
[322224851,1712893833082,-242.18369605,0.00027397,2]
[322224853,1712893833091,-500.0,0.00027397,2]
[322224855,1712893833099,-500.0,0.00027397,2]
[322224857,1712893833109,-500.0,0.00027397,2]
[322224859,1712893833118,-500.0,0.00027397,2]
[322224861,1712893833127,-500.0,0.00027397,2]
[322224863,1712893833136,-500.0,0.00027397,2]
[322224865,1712893833145,-500.0,0.00027397,2]
[322224867,1712893833155,-500.0,0.00027397,2]
[322224869,1712893833164,-150.0,0.00027397,2]
[322224871,1712893833174,-500.0,0.00027397,2]
[322224873,1712893833183,-500.0,0.00027397,2]
[322224874,1712893833192,-500.0,0.00027397,2]
[322224877,1712893833202,-500.0,0.00027397,2]
[322224879,1712893833211,-500.0,0.00027397,2]
[322224881,1712893833221,-895.12,0.00027397,2]
[322224883,1712893833231,-500.0,0.00027397,2]
[322224885,1712893833241,-524.89630419,0.00027397,2]
[322224886,1712893833250,-500.0,0.00027397,2]
[322224888,1712893833259,-500.0,0.00027397,2]
[322224890,1712893833268,-396.09337792,0.00027397,2]
[322224892,1712893833277,-500.0,0.00027397,2]
[322224894,1712893833286,-615.91295377,0.00027397,2]
[322224896,1712893833295,-500.0,0.00027397,2]
[322224898,1712893833305,-199.78547158,0.00027397,2]
[322224900,1712893833314,-500.0,0.00027397,2]
[322224902,1712893833323,-338.39303766,0.00027397,2]
[322224904,1712893833333,-500.0,0.00027397,2]
[322224906,1712893833342,-500.0,0.00027397,2]
[322224908,1712893833351,-196.26143213,0.00027397,2]
[322224910,1712893833360,-500.0,0.00027397,2]
[322224912,1712893833369,-500.0,0.00027397,2]
[322224914,1712893833378,-500.0,0.00027397,2]
[322224916,1712893833387,-500.0,0.00027397,2]
[322224918,1712893833396,-500.0,0.00027397,2]
[322224920,1712893833405,-623.21,0.00027397,2]
[322224922,1712893833414,-1249.32,0.00027397,2]
[322224924,1712893833423,-611.89,0.00027397,2]
[322224926,1712893833431,-500.0,0.00027397,2]
[322224928,1712893833440,-500.0,0.00027397,2]
[322224930,1712893833449,-219.8782893,0.00027397,2]
[322224932,1712893833458,-500.0,0.00027397,2]
[322224934,1712893833467,-500.0,0.00027397,2]
[322224936,1712893833476,-500.0,0.00027397,2]
[322224938,1712893833485,-500.0,0.00027397,2]
[322224940,1712893833494,-389.12583299,0.00027397,2]
[322224942,1712893833502,-504.00316679,0.00027397,2]
[322224944,1712893833512,-500.0,0.00027397,2]
[322224946,1712893833521,-500.0,0.00027397,2]
[322224948,1712893833530,-500.0,0.00027397,2]
[322224950,1712893833539,-500.0,0.00027397,2]
[322224952,1712893833548,-415.04792225,0.00027397,2]
[322224954,1712893833558,-500.0,0.00027397,2]
[322224956,1712893833567,-519.50546503,0.00027397,2]
[322224958,1712893833576,-500.0,0.00027397,2]
[322224960,1712893833585,-954.8,0.00027397,2]
[322224962,1712893833594,-500.0,0.00027397,2]
[322224964,1712893833603,-500.0,0.00027397,2]
[322224966,1712893833613,-500.0,0.00027397,2]
[322224968,1712893833622,-3168.74,0.00027397,2]
[322224970,1712893833631,-500.0,0.00027397,2]
[322224972,1712893833640,-507.84163257,0.00027397,2]
[322224974,1712893833649,-500.0,0.00027397,2]
[322224975,1712893833658,-500.0,0.00027397,2]
[322224977,1712893833668,-500.0,0.00027397,2]
[322224980,1712893833678,-7844.52,0.00027397,2]
[322224981,1712893833686,-500.0,0.00027397,2]
[322224983,1712893833695,-500.0,0.00027397,2]
[322224985,1712893833705,-500.0,0.00027397,2]
[322224987,1712893833718,-500.0,0.00027397,2]
[322224989,1712893833727,-500.0,0.00027397,2]
[322224991,1712893833736,-500.0,0.00027397,2]
[322224993,1712893833745,-254.14295815,0.00027397,2]
[322224995,1712893833755,-500.0,0.00027397,2]
[322224997,1712893833764,-500.0,0.00027397,2]
[322224999,1712893833773,-970.45,0.00027397,2]
[322225001,1712893833782,-500.0,0.00027397,2]
[322225003,1712893833792,-200.99640834,0.00027397,2]
[322225005,1712893833801,-500.0,0.00027397,2]
[322225007,1712893833811,-500.0,0.00027397,2]
[322225009,1712893833820,-500.0,0.00027397,2]
[322225011,1712893833829,-758.43,0.00027397,2]
[322225013,1712893833838,-778.72,0.00027397,2]
[322225015,1712893833848,-500.0,0.00027397,2]
[322225017,1712893833857,-1530.97,0.00027397,2]
[322225019,1712893833866,-1704.5,0.00027397,2]
[322225021,1712893833875,-500.0,0.00027397,2]
[322225023,1712893833885,-805.99,0.00027397,2]
[322225025,1712893833894,-500.0,0.00027397,2]
[322225027,1712893833903,-500.0,0.00027397,2]
[322225029,1712893833912,-500.0,0.00027397,2]
[322225031,1712893833921,-500.0,0.00027397,2]
[322225033,1712893833930,-500.0,0.00027397,2]
[322225035,1712893833939,-500.0,0.00027397,2]
[322225037,1712893833948,-500.0,0.00027397,2]
[322225039,1712893833957,-643.65944256,0.00027397,2]
[322225041,1712893833966,-3230.51,0.00027397,2]
[322225043,1712893833975,-1245.4,0.00027397,2]
[322225045,1712893833984,-520.1,0.00027397,2]
[322225047,1712893833994,-677.64,0.00027397,2]
[322225049,1712893834003,-500.0,0.00027397,2]
[322225051,1712893834012,-500.0,0.00027397,2]
[322225053,1712893834021,-1945.93,0.00027397,2]
[322225055,1712893834029,-500.0,0.00027397,2]
[322225057,1712893834038,-500.0,0.00027397,2]
[322225059,1712893834047,-955.67,0.00027397,2]
[322225061,1712893834056,-500.0,0.00027397,2]
[322225063,1712893834065,-2110.43,0.00027397,2]
[322225065,1712893834074,-500.0,0.00027397,2]
[322225067,1712893834084,-500.0,0.00027397,2]
[322225069,1712893834093,-739.43,0.00027397,2]
[322225071,1712893834102,-18052.29,0.00027397,2]
[322225073,1712893834111,-500.0,0.00027397,2]
[322225075,1712893834120,-500.0,0.00027397,2]
[322225077,1712893834129,-500.0,0.00027397,2]
[322225079,1712893834138,-2632.29,0.00027397,2]
[322225081,1712893834147,-899.7,0.00027397,2]
[322225083,1712893834156,-500.0,0.00027397,2]
[322225085,1712893834166,-1733.45,0.00027397,2]
[322225087,1712893834175,-500.0,0.00027397,2]
[322225089,1712893834184,-4504.93,0.00027397,2]
[322225091,1712893834193,-688.0,0.00027397,2]
[322225093,1712893834203,-500.0,0.00027397,2]
[322225095,1712893834212,-500.0,0.00027397,2]
[322225097,1712893834221,-1152.78,0.00027397,2]
[322225099,1712893834230,-661.51,0.00027397,2]
[322225101,1712893834239,-1189.47,0.00027397,2]
[322225103,1712893834248,-374.76450435,0.00027397,2]
[322225105,1712893834258,-500.0,0.00027397,2]
[322225107,1712893834267,-500.0,0.00027397,2]
[322225109,1712893834276,-500.0,0.00027397,2]
[322225111,1712893834285,-786.89,0.00027397,2]
[322225113,1712893834294,-3298.62,0.00027397,2]
[322225115,1712893834304,-500.0,0.00027397,2]
[322225117,1712893834314,-768.75,0.00027397,2]
[322225119,1712893834323,-500.0,0.00027397,2]
[322225121,1712893834332,-500.0,0.00027397,2]
[322225123,1712893834341,-500.0,0.00027397,2]
[322225125,1712893834350,-500.0,0.00027397,2]
[322225127,1712893834360,-500.0,0.00027397,2]
[322225129,1712893834370,-500.0,0.00027397,2]
[322225131,1712893834379,-500.0,0.00027397,2]
[322225133,1712893834388,-983.38,0.00027397,2]
[322225135,1712893834398,-500.0,0.00027397,2]
[322225138,1712893834407,-500.0,0.00027397,2]
[322225140,1712893834417,-500.0,0.00027397,2]
[322225142,1712893834426,-500.0,0.00027397,2]
[322225144,1712893834435,-500.0,0.00027397,2]
[322225146,1712893834445,-1440.58,0.00027397,2]
[322225148,1712893834454,-500.0,0.00027397,2]
[322225150,1712893834463,-500.0,0.00027397,2]
[322225152,1712893834472,-500.0,0.00027397,2]
[322225153,1712893834482,-500.0,0.00027397,2]
[322225155,1712893834491,-811.0,0.00027397,2]
[322225157,1712893834501,-500.0,0.00027397,2]
[322225160,1712893834511,-1465.66,0.00027397,2]
[322225162,1712893834520,-500.0,0.00027397,2]
[322225163,1712893834530,-2029.97,0.00027397,2]
[322225166,1712893834539,-500.0,0.00027397,2]
[322225167,1712893834548,-500.0,0.00027397,2]
[322225169,1712893834558,-500.0,0.00027397,2]
[322225171,1712893834567,-500.0,0.00027397,2]
[322225173,1712893834577,-2531.01,0.00027397,2]
[322225175,1712893834586,-656.21,0.00027397,2]
[322225177,1712893834596,-866.89,0.00027397,2]
[322225179,1712893834605,-500.0,0.00027397,2]
[322225181,1712893834614,-500.0,0.00027397,2]
[322225183,1712893834623,-1673.58,0.00027397,2]
[322225185,1712893834633,-6666.4,0.00027397,2]
[322225187,1712893834642,-500.0,0.00027397,2]
[322225189,1712893834651,-1715.13,0.00027397,2]
[322225191,1712893834660,-500.0,0.00027397,2]
[322225193,1712893834670,-11504.28,0.00027397,2]
[322225196,1712893834683,-11504.28,0.00027397,2]
[322225197,1712893834693,-500.0,0.00027397,2]
[322225200,1712893834704,-539.75,0.00027397,2]
[322225201,1712893834717,-500.0,0.00027397,2]
[322225203,1712893834726,-500.0,0.00027397,2]
[322225205,1712893834736,-500.0,0.00027397,2]
[322225207,1712893834745,-2640.12,0.00027397,2]
[322225210,1712893834756,-500.0,0.00027397,2]
[322225212,1712893834765,-805.93,0.00027397,2]
[322225214,1712893834775,-399.45402977,0.00027397,2]
[322225215,1712893834785,-624.1705618,0.00027397,2]
[322225218,1712893834794,-500.0,0.00027397,2]
[322225219,1712893834805,-500.0,0.00027397,2]
[322225221,1712893834814,-439.53121831,0.00027397,2]
[322225224,1712893834824,-500.0,0.00027397,2]
[322225226,1712893834833,-1748.46,0.00027397,2]
[322225228,1712893834842,-701.92,0.00027397,2]
[322225230,1712893834852,-500.0,0.00027397,2]
[322225232,1712893834861,-500.0,0.00027397,2]
[322225234,1712893834871,-815.85,0.00027397,2]
[322225236,1712893834881,-500.0,0.00027397,2]
[322225237,1712893834890,-975.53,0.00027397,2]
[322225238,1712893834899,-500.0,0.00027397,2]
[322225239,1712893834908,-500.0,0.00027397,2]
[322225240,1712893834917,-500.0,0.00027397,2]
[322225241,1712893834927,-1214.76,0.00027397,2]
[322225242,1712893834937,-877.62,0.00027397,2]
[322225243,1712893834946,-3262.71,0.00027397,2]
[322225244,1712893834955,-500.0,0.00027397,2]
[322225245,1712893834965,-965.95,0.00027397,2]
[322225247,1712893834975,-500.0,0.00027397,2]
[322225249,1712893834984,-574.53,0.00027397,2]
[322225252,1712893834994,-500.0,0.00027397,2]
[322225254,1712893835003,-500.0,0.00027397,2]
[322225256,1712893835013,-2331.57,0.00027397,2]
[322225258,1712893835023,-555.59619918,0.00027397,2]
[322225260,1712893835033,-1378.1,0.00027397,2]
[322225262,1712893835043,-514.7,0.00027397,2]
[322225264,1712893835052,-3159.3,0.00027397,2]
[322225266,1712893835062,-1494.31,0.00027397,2]
[322225268,1712893835072,-318.58459529,0.00027397,2]
[322225270,1712893835082,-1158.93,0.00027397,2]
[322225272,1712893835092,-1802.5,0.00027397,2]
[322225274,1712893835102,-783.02,0.00027397,2]
[322225276,1712893835111,-500.0,0.00027397,2]
[322225278,1712893835132,-2021.66,0.00027397,2]
[322225280,1712893835168,-182.70453232,0.00027397,2]
[322225282,1712893835220,-2310.98,0.00027397,2]
[322225284,1712893835277,-500.0,0.00027397,2]
[322225286,1712893835290,-500.0,0.00027397,2]
[322225288,1712893835301,-1073.37,0.00027397,2]
[322225290,1712893835313,-2000.02,0.00027397,2]
[322225292,1712893835322,-500.0,0.00027397,2]
[322225294,1712893835333,-500.0,0.00027397,2]
[322225296,1712893835342,-500.0,0.00027397,2]
[322225298,1712893835352,-362.72,0.00027397,10]
[322225300,1712893835361,-159.74923233,0.00027491,2]
[322225302,1712893835371,-200.0,0.0002754,7]
[322225304,1712893835382,-196.41172135,0.00027543,2]
[322225307,1712893835392,-158.81,0.00027561,2]
[322225309,1712893835402,-161.32773537,0.00027571,2]
[322225311,1712893835412,-25254.7420744,0.00027571,2]
[322225313,1712893835429,-580.7768,0.00027571,2]
[322225316,1712893835441,-499.95,0.00027571,2]
[322225318,1712893835454,-886.0,0.00027571,2]
[322225320,1712893835466,-308.807424,0.00027571,2]
[322225323,1712893835478,-833.79793316,0.00027571,2]
[322225325,1712893835490,-1290.90309334,0.00027571,2]
[322225327,1712893835502,-6476.2278075,0.00027571,2]
[322225329,1712893835514,-469.63521555,0.00027571,2]
[322225333,1712893835534,-837.00432254,0.00027571,2]
[322225335,1712893835546,-253.92241788,0.00027571,2]
[322225337,1712893835560,-1683.47917021,0.00027571,2]
[322225547,1712893837990,-1514.09,0.00027397,2]
[322225549,1712893838001,-31457.32003694,0.00027571,2]
[322225560,1712893838429,-16419.07751652,0.00027571,2]
[322225563,1712893838908,-7076.96488765,0.00027571,2]
[322225567,1712893840210,-500.0,0.00027397,2]
[322225568,1712893840219,-11.99637956,0.00027397,2]
[322225584,1712893843446,-1.66904788,0.00027397,2]
[322225585,1712893843599,-758.74457256,0.00027397,2]
[322225586,1712893843609,-500.0,0.00027397,2]
[322225587,1712893843619,-1633.48,0.00027397,2]
[322225588,1712893843629,-500.0,0.00027397,2]
[322225589,1712893843638,-302.26,0.00027561,10]
[322225590,1712893843647,-52935.38146249,0.00027571,2]
[322225606,1712893846112,-500.0,0.00027397,2]
[322225607,1712893846122,-500.0,0.00027397,2]
[322225608,1712893846143,-500.0,0.00027397,2]
[322225609,1712893846154,-8333.55481278,0.00027571,2]
[322225610,1712893846220,-5895.72528088,0.00027571,2]
[322225611,1712893846336,-1284.25857953,0.00027571,2]
[322225612,1712893846353,-5402.69282046,0.00027571,2]
[322225613,1712893846386,-515.34735134,0.00027571,2]
[322225615,1712893984481,190025.1481815,0.000189,2]
[322225616,1712894028146,899.28820135,0.0002,2]
[322225617,1712894172983,1015.0,0.00034101,30]
[322225641,1712895032223,-158.66,0.0002099,2]
[322225643,1712895032232,-158.66,0.0002099,2]
[322225645,1712895032242,-158.66,0.0002099,2]
[322225647,1712895032251,-158.66,0.0002099,2]
[322225649,1712895032260,-1367.12069057,0.00020999,2]
[322225651,1712895032277,-6657.97338281,0.00020999,2]
[322225652,1712895032334,-3921.68974662,0.00020999,2]
[322225653,1712895032398,-9970.87551611,0.00020999,2]
[322225654,1712895032444,-2592.57686519,0.00020999,2]
[322225655,1712895032500,-2120.29114441,0.00020999,2]
[322225656,1712895032564,-393.9,0.00020999,2]
[322225657,1712895032577,-1629.76586371,0.00020999,2]
[322225662,1712895038418,-3285.175,0.00020999,2]
[322225663,1712895038924,-6775.96856293,0.00020999,2]
[322225664,1712895038938,-7103.53077201,0.00020999,2]
[322225665,1712895038951,-1783.2727347,0.00020999,2]
[322225667,1712895040341,-2456.31841228,0.00020999,2]
[322225673,1712895043307,-5125.53638413,0.00020999,2]
[322225714,1712896231371,-150.0,0.00020741,2]
[322225715,1712896231383,-352.50290022,0.00020788,2]
[322225716,1712896231395,-240.26249338,0.00020788,2]
[322225717,1712896231407,-318.62832766,0.00020788,2]
[322225718,1712896231419,-214.61544817,0.00020788,2]
[322225719,1712896231431,-1098.09905985,0.000209,2]
[322225720,1712896231443,-12335.10029243,0.000209,2]
[322225721,1712896231455,-323.13943688,0.000209,2]
[322225722,1712896231468,-2244.15784796,0.000209,2]
[322225723,1712896231482,-9921.35776376,0.00020977,4]
[322225724,1712896231493,-4573.26074924,0.00020979,2]
[322225725,1712896231503,-158.67,0.0002099,2]
[322225726,1712896231515,-158.67,0.0002099,2]
[322225727,1712896231526,-177.46028583,0.0002099,2]
[322225728,1712896231537,-364.09543135,0.00020998,2]
[322225729,1712896231549,-235.90908142,0.00020998,2]
[322225730,1712896231560,-565.02256181,0.00020998,2]
[322225731,1712896231572,-267.97447343,0.00020998,2]
[322225732,1712896231583,-4716.5472582,0.00020998,2]
[322225733,1712896231595,-155.0,0.00020998,2]
[322225734,1712896231606,-487.53167159,0.00020998,2]
[322225735,1712896231617,-1240.66300341,0.00020998,2]
[322225736,1712896231629,-262.52308627,0.00020998,2]
[322225737,1712896231642,-6231.62531632,0.00020998,2]
[322225738,1712896231653,-665.9448243,0.00020998,2]
[322225739,1712896231664,-703.92171334,0.00020998,2]
[322225740,1712896231675,-205.92323207,0.00020998,2]
[322225741,1712896231685,-217.91923459,0.00020998,2]
[322225742,1712896231696,-4314.61098704,0.00020998,2]
[322225743,1712896231709,-7728.98965993,0.00020998,2]
[322225744,1712896231720,-3692.50343558,0.00020998,2]
[322225745,1712896231733,-375.85470948,0.00020998,2]
[322225746,1712896231746,-1043.44393154,0.00020998,2]
[322225747,1712896231758,-3070.55960045,0.00020998,2]
[322225748,1712896231769,-1443.85403433,0.00020998,2]
[322225749,1712896231780,-2047.62177569,0.00020998,2]
[322225750,1712896231791,-236.21588443,0.00020998,2]
[322225751,1712896231802,-365.69877448,0.00020998,2]
[322225753,1712896231813,-317.9161336,0.00020998,2]
[322225755,1712896231823,-224.66023107,0.00020998,2]
[322225757,1712896231834,-38851.39672006,0.00020999,2]
[322225759,1712896231845,-1002.57579,0.00020999,2]
[322225761,1712896231856,-841985.28380268,0.00021,2]
[322225763,1712896231867,-2209.58886426,0.00021,2]
[322225765,1712896231877,-350.0,0.00021,3]
[322225767,1712896231888,-6163.83,0.00021,2]
[322225768,1712896231899,-300.0,0.00021282,2]
[322225769,1712896231909,-441.58,0.00021463,2]
[322225770,1712896231920,-756.71366921,0.00022,2]
[322225771,1712896231930,-1098.09905983,0.00022614,2]
[322225772,1712896231941,-254.37,0.00022778,2]
[322225773,1712896231952,-1764.37,0.0002305,2]
[322225774,1712896231963,-7378.85,0.00023069,2]
[322225775,1712896231973,-200.0,0.00023176,2]
[322225776,1712896231984,-250.0,0.00023201,2]